fUSD/lending_fUSD_20240820
["ID","MTS","AMOUNT","RATE_DAILY","PERIOD"]
[335336826,1724123354430,-600.0,0.00010172,2]
[335336827,1724123354451,-500.0,0.00010195,2]
[335336828,1724123354472,-205.74165976,0.00010203,2]
[335336829,1724123354495,-544.0,0.0001021,2]
[335336830,1724123354517,-600.0,0.00010296,2]
[335336831,1724123354538,-500.0,0.00010302,2]
[335336832,1724123354561,-500.0,0.00010348,2]
[335336833,1724123354583,-931.70301988,0.0001035,2]
[335336834,1724123354604,-499.99,0.0001035,2]
[335336835,1724123354630,-600.0,0.00010355,2]
[335336836,1724123354651,-1300.0,0.00010359,2]
[335336837,1724123354673,-500.0,0.00010361,2]
[335336838,1724123354697,-300.0,0.00010364,2]
[335336839,1724123354720,-500.0,0.00010366,2]
[335336840,1724123354745,-3100.0,0.0001037,2]
[335336841,1724123354766,-600.0,0.00010406,2]
[335336842,1724123354788,-600.0,0.00010416,2]
[335336843,1724123354810,-500.0,0.00010445,2]
[335336844,1724123354831,-500.0,0.00010449,2]
[335336845,1724123354852,-600.0,0.00010455,2]
[335336846,1724123354875,-552.16,0.00010462,2]
[335336847,1724123354898,-2700.0,0.00010471,2]
[335336848,1724123354919,-3608.56005053,0.00010471,2]
[335336849,1724123354941,-500.0,0.00010483,2]
[335336850,1724123354963,-150.0,0.00010483,2]
[335336851,1724123354986,-3951.7887362,0.00010505,2]
[335336852,1724123355008,-1454.90814445,0.00010505,2]
[335336853,1724123378651,250.0,9.854e-05,2]
[335336857,1724123432319,-1108.301799,0.00010452,2]
[335336858,1724123432328,-155.0,0.00010471,2]
[335336859,1724123432337,-1500.0,0.00010471,2]
[335336860,1724123432347,-300.0,0.00010504,2]
[335336861,1724123432356,-300.0,0.00010504,2]
[335336862,1724123432365,-894.79275761,0.00010505,2]
[335336863,1724123432375,-545.19269091,0.00010524,2]
[335336864,1724123432485,-754.80730909,0.00010524,2]
[335336865,1724123432495,-500.0,0.00010534,2]
[335336866,1724123432504,-201.98324182,0.00010534,2]
[335336867,1724123432515,-298.01675818,0.00010534,2]
[335336868,1724123432524,-600.79792946,0.00010566,2]
[335336869,1724123432533,-1000.0,0.000106,2]
[335336870,1724123432542,-806.67584589,0.000106,2]
[335336871,1724123438164,-2510.72,0.00010471,2]
[335336874,1724123438177,-527.6318226,0.00010471,2]
[335336876,1724123438186,-493.87811631,0.00010505,2]
[335336878,1724123438196,-4847.28675411,0.000106,2]
[335336880,1724123438205,-857.57610714,0.000106,2]
[335336881,1724123438391,-240.42389286,0.000106,2]
[335336882,1724123438401,-500.0,0.00010616,2]
[335336883,1724123438412,-3100.0,0.00010618,2]
[335336884,1724123438422,-500.0,0.00010626,2]
[335336885,1724123438431,-500.0,0.00010634,2]
[335336886,1724123438441,-600.0,0.0001065,2]
[335336887,1724123438451,-2700.0,0.00010656,2]
[335336888,1724123438460,-500.0,0.00010664,2]
[335336889,1724123438469,-600.0,0.00010665,2]
[335336890,1724123438479,-500.0,0.00010674,2]
[335336891,1724123438488,-500.0,0.00010682,2]
[335336892,1724123438498,-1300.0,0.00010699,2]
[335336893,1724123438507,-156.84418349,0.00010699,2]
[335336894,1724123438517,-495.06758146,0.00010699,2]
[335336895,1724123438526,-255.21992957,0.00010699,2]
[335336896,1724123438535,-155.38671598,0.00010713,2]
[335336897,1724123438545,-196.66616766,0.00010713,2]
[335336898,1724123438555,-155.41131823,0.00010713,2]
[335336899,1724123438564,-3925.44196721,0.00010713,2]
[335336901,1724123438574,-160.46336842,0.00010713,2]
[335336903,1724123438583,-319.38158331,0.00010713,2]
[335336905,1724123438593,-1258.43002117,0.00010713,2]
[335336907,1724123438602,-155.3160199,0.00010713,2]
[335336909,1724123438611,-204.50721815,0.00010713,2]
[335336911,1724123438621,-161.31266222,0.00010713,2]
[335336913,1724123438630,-382.3827034,0.00010713,2]
[335336915,1724123438640,-188.54669645,0.00010713,2]
[335336917,1724123438650,-185.48188221,0.00010713,2]
[335336918,1724123438659,-150.0,0.0001074,2]
[335336920,1724123438669,-150.0,0.0001074,2]
[335336922,1724123438678,-150.0,0.00010746,2]
[335336924,1724123438687,-150.0,0.00010752,2]
[335336926,1724123438697,-150.0,0.00010755,2]
[335336927,1724123438706,-150.0,0.00010758,2]
[335336929,1724123438715,-150.0,0.00010761,2]
[335336931,1724123438724,-150.0,0.00010761,2]
[335336933,1724123438733,-150.0,0.00010764,2]
[335336935,1724123438742,-150.0,0.00010791,2]
[335336937,1724123438752,-150.0,0.00010793,2]
[335336939,1724123438762,-155.0,0.00010799,2]
[335336941,1724123438771,-179.4623719,0.00010799,2]
[335336943,1724123438781,-155.44893349,0.00010799,2]
[335336945,1724123438791,-442.05614746,0.00010799,2]
[335336946,1724123438800,-366.7004421,0.00010799,2]
[335336948,1724123438810,-236.36319912,0.00010799,2]
[335336950,1724123438819,-4704.15184783,0.000108,2]
[335336952,1724123438830,-2875.2504278,0.000108,2]
[335336954,1724123438840,-3052.91738622,0.000108,2]
[335336956,1724123438850,-150.0,0.00010804,2]
[335336958,1724123438859,-150.0,0.00010807,2]
[335336960,1724123438868,-500.0,0.00010816,2]
[335336961,1724123438878,-150.0,0.00010818,2]
[335336963,1724123438887,-150.0,0.00010821,2]
[335336965,1724123438896,-150.0,0.00010824,2]
[335336967,1724123438904,-3749.12789011,0.00010825,2]
[335336969,1724123438914,-150.0,0.00010835,2]
[335336971,1724123438923,-3283.74891204,0.00010835,2]
[335336973,1724123438932,-150.0,0.0001084,2]
[335336975,1724123438941,-257.51675711,0.00010845,2]
[335336977,1724123438951,-150.0,0.00010848,2]
[335336979,1724123438961,-257.51675711,0.00010849,2]
[335336981,1724123438970,-155.95437012,0.00010852,2]
[335336983,1724123438980,-257.51675711,0.00010855,2]
[335336985,1724123438989,-150.0,0.00010859,2]
[335336987,1724123438998,-447.0,0.00010861,2]
[335336989,1724123439007,-150.212,0.00010861,2]
[335336991,1724123439017,-556.0,0.00010861,2]
[335336993,1724123439026,-721.0,0.00010861,2]
[335336994,1724123439036,-820.019,0.00010861,2]
[335336996,1724123439045,-1896.0,0.00010861,2]
[335336998,1724123439055,-150.51,0.00010861,2]
[335337000,1724123439065,-555.614,0.00010861,2]
[335337002,1724123439075,-1165.0,0.00010861,2]
[335337004,1724123439089,-3319.0,0.00010861,2]
[335337006,1724123439099,-248.248,0.00010861,2]
[335337008,1724123439108,-764.0,0.00010861,2]
[335337010,1724123439117,-179.17215777,0.00010862,2]
[335337012,1724123439128,-257.51675711,0.00010862,2]
[335337013,1724123439138,-150.0,0.00010863,2]
[335337015,1724123439147,-257.51675711,0.00010863,2]
[335337016,1724123439157,-257.51675711,0.00010866,2]
[335337017,1724123439168,-257.51675711,0.00010877,2]
[335337018,1724123439177,-257.51675711,0.00010879,2]
[335337019,1724123439187,-150.0,0.00010881,2]
[335337020,1724123439197,-274.71460437,0.00010886,2]
[335337021,1724123439206,-432.5166998,0.00010888,2]
[335337022,1724123439215,-150.0,0.00010888,2]
[335337023,1724123439224,-865.26649,0.0001089,2]
[335337024,1724123439233,-150.0,0.00010895,2]
[335337025,1724123439242,-1000.0,0.00010897,2]
[335337026,1724123439252,-150.0,0.00010898,2]
[335337027,1724123439261,-175.46649454,0.00010899,2]
[335337028,1724123439271,-175.46649454,0.00010899,2]
[335337029,1724123439280,-1300.0,0.00010899,2]
[335337030,1724123439289,-290.16992778,0.00010899,2]
[335337031,1724123439298,-626.9819,0.000109,2]
[335337032,1724123439308,-177.7876,0.000109,2]
[335337033,1724123439317,-756.3379,0.000109,2]
[335337034,1724123439328,-671.994,0.000109,2]
[335337035,1724123439340,-7500.0,0.000109,2]
[335337036,1724123439350,-1273.2523,0.000109,2]
[335337037,1724123439359,-797.33409331,0.000109,2]
[335337038,1724123439372,-1202.66590669,0.000109,2]
[335337039,1724123439383,-500.0,0.000109,2]
[335337040,1724123439392,-496.2913,0.000109,2]
[335337041,1724123439401,-3238.1439,0.000109,2]
[335337042,1724123439411,-981.8128,0.000109,2]
[335337043,1724123439420,-175.46649454,0.000109,2]
[335337044,1724123439429,-687.65318458,0.000109,2]
[335337045,1724123439438,-150.0,0.00010904,2]
[335337046,1724123439447,-150.0,0.00010905,2]
[335337047,1724123439456,-600.0,0.00010905,2]
[335337048,1724123439465,-3100.0,0.00010905,2]
[335337049,1724123439474,-600.0,0.00010907,2]
[335337050,1724123439483,-3727.0,0.00010912,2]
[335337051,1724123439493,-289.0,0.00010912,2]
[335337052,1724123439502,-5846.0,0.00010912,2]
[335337053,1724123439511,-21775.0,0.00010912,2]
[335337054,1724123439520,-1674.0,0.00010912,2]
[335337055,1724123439529,-1205.0,0.00010912,2]
[335337056,1724123439538,-150.0,0.00010914,2]
[335337057,1724123439548,-600.0,0.00010924,2]
[335337058,1724123439556,-150.0,0.00010928,2]
[335337059,1724123439566,-500.0,0.00010928,2]
[335337060,1724123439576,-150.0,0.0001093,2]
[335337061,1724123439585,-150.0,0.00010938,2]
[335337062,1724123439593,-150.0,0.0001094,2]
[335337063,1724123439603,-500.0,0.00010941,2]
[335337064,1724123439612,-500.0,0.00010951,2]
[335337065,1724123439622,-150.0,0.00010952,2]
[335337066,1724123439631,-150.0,0.00010955,2]
[335337067,1724123439640,-509.87,0.00010959,2]
[335337068,1724123439650,-250.0,0.00010959,2]
[335337069,1724123439659,-150.0,0.00010966,2]
[335337070,1724123439669,-150.0,0.0001097,2]
[335337071,1724123439678,-200.0,0.00010973,2]
[335337072,1724123439687,-10572.58406444,0.00010979,2]
[335337073,1724123439696,-155.0,0.00010979,2]
[335337074,1724123439706,-874.15247747,0.00010979,2]
[335337075,1724123439715,-59816.36945334,0.00010988,2]
[335337076,1724123439725,-219.67516461,0.00010989,2]
[335337077,1724123439734,-201.21319313,0.00010993,2]
[335337078,1724123439744,-628.88487625,0.00010993,2]
[335337079,1724123439753,-2700.0,0.00010994,2]
[335337080,1724123439763,-500.0,0.00010994,2]
[335337081,1724123439773,-150.0,0.00010995,2]
[335337082,1724123439782,-1370.8567115,0.00010995,2]
[335337083,1724123439792,-12526.35179625,0.00010997,2]
[335337084,1724123439802,-11.0021272,0.00010999,2]
[335337085,1724123439814,-247.80039489,0.00010999,2]
[335337086,1724123439823,-992.95,0.00010999,2]
[335337087,1724123439833,-563.39667648,0.00010999,2]
[335337088,1724123439844,-429.55332352,0.00010999,2]
[335337089,1724123439854,-992.95,0.00010999,2]
[335337090,1724123439864,-992.95,0.00010999,2]
[335337091,1724123439874,-992.95,0.00010999,2]
[335337092,1724123439883,-992.95,0.00010999,2]
[335337093,1724123439893,-640.24667648,0.00010999,2]
[335337094,1724123439905,-352.70332352,0.00010999,2]
[335337095,1724123439914,-77.92299971,0.00010999,2]
[335337096,1724123439925,-364.0,0.00010999,2]
[335337097,1724123439936,-470.83343635,0.00010999,2]
[335337098,1724123439948,-80.19356394,0.00010999,2]
[335337099,1724123439958,-583.00643606,0.00010999,2]
[335337100,1724123439970,-409.94356394,0.00010999,2]
[335337101,1724123439979,-232.20643605,0.00010999,2]
[335337102,1724123439991,-760.74356395,0.00010999,2]
[335337103,1724123440000,-992.95,0.00010999,2]
[335337104,1724123440010,-610.57856601,0.00010999,2]
[335337105,1724123440021,-382.37143399,0.00010999,2]
[335337106,1724123440031,-992.95,0.00010999,2]
[335337107,1724123440041,-992.95,0.00010999,2]
[335337108,1724123440051,-992.95,0.00010999,2]
[335337109,1724123440061,-992.95,0.00010999,2]
[335337110,1724123440070,-630.89213158,0.00010999,2]
[335337111,1724123440086,-362.05786842,0.00010999,2]
[335337112,1724123440095,-992.95,0.00010999,2]
[335337113,1724123440105,-992.95,0.00010999,2]
[335337114,1724123440115,-992.95,0.00010999,2]
[335337115,1724123440126,-992.95,0.00010999,2]
[335337116,1724123440135,-992.95,0.00010999,2]
[335337117,1724123440145,-992.95,0.00010999,2]
[335337118,1724123440155,-993.02206866,0.00010999,2]
[335337119,1724123440165,-297.4607519,0.00010999,2]
[335337120,1724123440174,-1403.79,0.00010999,2]
[335337121,1724123440183,-1403.79,0.00010999,2]
[335337122,1724123440193,-1403.79,0.00010999,2]
[335337123,1724123440202,-1403.79,0.00010999,2]
[335337124,1724123440212,-1403.79,0.00010999,2]
[335337125,1724123440222,-1403.79,0.00010999,2]
[335337126,1724123440231,-1403.79,0.00010999,2]
[335337127,1724123440241,-1403.79,0.00010999,2]
[335337128,1724123440250,-1403.79,0.00010999,2]
[335337129,1724123440260,-1403.79,0.00010999,2]
[335337130,1724123440270,-1403.79,0.00010999,2]
[335337131,1724123440279,-1403.79,0.00010999,2]
[335337132,1724123440289,-1403.79,0.00010999,2]
[335337133,1724123440299,-1403.79,0.00010999,2]
[335337134,1724123440308,-1403.79,0.00010999,2]
[335337136,1724123440318,-1403.79,0.00010999,2]
[335337137,1724123440327,-1403.79,0.00010999,2]
[335337138,1724123440337,-1403.79,0.00010999,2]
[335337139,1724123440347,-1403.79,0.00010999,2]
[335337140,1724123440356,-1403.79,0.00010999,2]
[335337141,1724123440366,-1403.79,0.00010999,2]
[335337142,1724123440375,-1403.79,0.00010999,2]
[335337143,1724123440384,-1403.79,0.00010999,2]
[335337144,1724123440393,-1403.83,0.00010999,2]
[335337145,1724123440403,-379.06408784,0.00010999,2]
[335337146,1724123440413,-849.0,0.00011,2]
[335337147,1724123440422,-387767.45085559,0.00011,2]
[335337148,1724123440435,-306696.4317018,0.00011,2]
[335337149,1724123440444,-2656418.50046581,0.00011,2]
[335337150,1724123440455,-380.0,0.00011,2]
[335337151,1724123440467,-285.763033,0.00011,2]
[335337152,1724123440479,-700.54689836,0.00011,2]
[335337153,1724123440556,-4825.8235,0.00010888,2]
[335337154,1724123440565,-199.43358903,0.00010993,2]
[335337155,1724123440577,-536.65833866,0.00010993,2]
[335337156,1724123440588,-79005.22449322,0.00011,2]
[335337157,1724123440599,-65220.33347668,0.00011,2]
[335337158,1724123440610,-111855.72390297,0.00011,2]
[335337159,1724123440630,-1605.85700381,0.00011,2]
[335337160,1724123440676,-8408.66655748,0.00011,2]
[335337161,1724123440688,-28500.0,0.00011,2]
[335337162,1724123440699,-703.655,0.00011,2]
[335337163,1724123440710,-5000.00000003,0.00011,2]
[335337164,1724123440721,-367.49154522,0.00011,2]
[335337165,1724123440732,-605.935,0.00011,2]
[335337166,1724123440743,-1705.11928477,0.00011,2]
[335337167,1724123440754,-397.63098387,0.00011,2]
[335337168,1724123440766,-415.1,0.00011,2]
[335337169,1724123440785,-516.139306,0.00011,2]
[335337170,1724123440796,-1916.9253763,0.00011,2]
[335337171,1724123440807,-706.04,0.00011,2]
[335337174,1724123441168,-7873.10153167,0.00011,2]
[335337175,1724123441183,-1480.21316393,0.00011,2]
[335337176,1724123441194,-8821.75096878,0.00011,2]
[335337177,1724123441205,-60910.70420284,0.00011,2]
[335337200,1724123443927,-296.13443335,0.00011,2]
[335337201,1724123443939,-1388.82081271,0.00011,2]
[335337202,1724123443951,-707.3898016,0.00011,2]
[335337203,1724123443962,-3079.99995,0.00011,2]
[335337204,1724123443973,-430.65367495,0.00011,2]
[335337205,1724123443984,-578.08506897,0.00011,2]
[335337206,1724123444013,-25007.0,0.00011,2]
[335337207,1724123444025,-865830.38098504,0.00011,2]
[335337208,1724123444039,-7707.22865925,0.00011,2]
[335337209,1724123444049,-394.58101345,0.00011,2]
[335337210,1724123444061,-1732.88242047,0.00011,2]
[335337211,1724123444071,-640.224,0.00011,2]
[335337212,1724123444086,-12175.6,0.00011,2]
[335337213,1724123444097,-2421.6,0.00011,2]
[335337214,1724123444108,-604.07802196,0.00011,2]
[335337215,1724123444119,-2126.874996,0.00011,2]
[335337216,1724123444131,-5626.523833,0.00011,2]
[335337217,1724123444143,-3160.1831115,0.00011,2]
[335337218,1724123444153,-592.3999995,0.00011,2]
[335337232,1724123446412,-573.43013765,0.00011,2]
[335337233,1724123446423,-335.60142443,0.00011,2]
[335337234,1724123446434,-62003.14113327,0.00011,2]
[335337235,1724123446445,-3632.48387222,0.00011,2]
[335337236,1724123446455,-2386.42907917,0.00011,2]
[335337237,1724123446467,-336.21587999,0.00011,2]
[335337238,1724123446478,-2983.5989,0.00011,2]
[335337239,1724123446489,-500.0,0.00011,2]
[335337240,1724123446500,-473.16872116,0.00011,2]
[335337241,1724123446510,-78643.30251054,0.00011,2]
[335337242,1724123446521,-3765.69953211,0.00011,2]
[335337243,1724123446532,-748.82902201,0.00011,2]
[335337244,1724123446543,-275.5687984,0.00011,2]
[335337245,1724123446554,-4017.62324958,0.00011,2]
[335337246,1724123446565,-9031.66202196,0.00011,2]
[335337247,1724123446612,-2269.2549735,0.00011,2]
[335337248,1724123446623,-265.9377228,0.00011,2]
[335337249,1724123446634,-970.74420354,0.00011,2]
[335337250,1724123446645,-353.68141749,0.00011,2]
[335337251,1724123446656,-663.02749647,0.00011,2]
[335337252,1724123446667,-18489.299042,0.00011,2]
[335337253,1724123446677,-1613.48867776,0.00011,2]
[335337254,1724123446688,-16516.59287151,0.00011,2]
[335337255,1724123625153,161.26,9.699e-05,2]
[335337256,1724123648847,188.44,9.688e-05,2]
[335337257,1724123650297,817.59,9.688e-05,2]
[335337258,1724123652798,169.74,9.688e-05,2]
[335337259,1724123866536,250.0,9.755e-05,2]
[335337260,1724123960554,649.06,8.219e-05,2]
[335337261,1724123987304,236.8,9.753e-05,2]
[335337262,1724124166349,408.79,9.65e-05,2]
[335337263,1724124167024,155.4241253,9.899e-05,2]
[335337270,1724124302165,160.09,9.654e-05,2]
[335337273,1724124338393,250.0,9.67e-05,2]
[335337275,1724124449244,810.56,9.677e-05,2]
[335337277,1724124497655,616.6,8.219e-05,2]
[335337306,1724124632414,-155.0,9.91e-05,2]
[335337308,1724124632424,-404.80280818,9.941e-05,2]
[335337309,1724124632436,-1075.9549519,9.941e-05,2]
[335337311,1724124632447,-425.30016265,9.941e-05,2]
[335337314,1724124632460,-437.47332711,9.941e-05,2]
[335337316,1724124632472,-1050.0,0.0001,2]
[335337318,1724124632481,-29.95396754,0.0001,2]
[335337320,1724124632493,-181.12130949,0.0001,2]
[335337321,1724124632504,-240.43708975,0.00010013,2]
[335337322,1724124632515,-259.56291025,0.00010013,2]
[335337323,1724124632525,-1200.0,0.00010019,2]
[335337324,1724124632534,-143.20623164,0.00010025,2]
[335337325,1724124632613,-156.79376836,0.00010025,2]
[335337326,1724124632623,-300.0,0.00010025,2]
[335337327,1724124632632,-4943.29089794,0.00010026,2]
[335337328,1724124632643,-1879.8522855,0.00010026,2]
[335337329,1724124632654,-1230.78807392,0.00010026,2]
[335337330,1724124632666,-2485.90073189,0.00010026,2]
[335337331,1724124632675,-500.0,0.0001003,2]
[335337332,1724124632685,-500.0,0.00010031,2]
[335337333,1724124632694,-8.86879314,0.0001005,2]
[335337334,1724124632705,-491.12120686,0.0001005,2]
[335337335,1724124632714,-130.87879314,0.00010057,2]
[335337336,1724124632726,-2769.12120686,0.00010057,2]
[335337337,1724124632735,-842.49,0.00010057,2]
[335337338,1724124632744,-344.35591642,0.00010099,2]
[335337339,1724124632756,-855.64408358,0.00010099,2]
[335337340,1724124632766,-500.0,0.00010153,2]
[335337341,1724124632776,-500.0,0.00010177,2]
[335337342,1724124632785,-500.0,0.00010201,2]
[335337343,1724124632795,-500.0,0.00010246,2]
[335337344,1724124632804,-2900.0,0.00010265,2]
[335337345,1724124632814,-500.0,0.00010285,2]
[335337347,1724124632823,-500.0,0.00010338,2]
[335337349,1724124632833,-500.0,0.00010368,2]
[335337351,1724124632842,-500.0,0.00010369,2]
[335337353,1724124632852,-500.0,0.00010369,2]
[335337355,1724124632862,-500.0,0.00010379,2]
[335337357,1724124632871,-150.0,0.00010379,2]
[335337359,1724124632881,-2900.0,0.00010424,2]
[335337361,1724124632891,-790.63,0.00010441,2]
[335337363,1724124632900,-790.63,0.00010441,2]
[335337365,1724124632910,-790.63,0.00010441,2]
[335337366,1724124632919,-790.63,0.00010441,2]
[335337368,1724124632928,-790.63,0.00010441,2]
[335337370,1724124632937,-414.95,0.00010441,2]
[335337372,1724124632946,-616.6,0.0001046,2]
[335337374,1724124632957,-2417.20145965,0.00010468,2]
[335337376,1724124632969,-351.96,0.00010468,2]
[335337379,1724124632981,-130.83854035,0.00010468,2]
[335337381,1724124632990,-137.23156897,0.00010473,2]
[335337383,1724124633002,-362.76843103,0.00010473,2]
[335337385,1724124633011,-790.63,0.000105,2]
[335337386,1724124633020,-224.89734299,0.0001052,2]
[335337388,1724124633032,-275.10265701,0.0001052,2]
[335337390,1724124633041,-2.40614841,0.00010566,2]
[335337393,1724124633053,-939.82724979,0.00010566,2]
[335337399,1724124634368,155.0,9.899e-05,2]
[335337401,1724124638459,-2843.18598916,0.00010505,2]
[335337402,1724124638472,-192.91047057,0.00010566,2]
[335337403,1724124638483,-1697.09681295,0.00010566,2]
[335337404,1724124638495,-744.74833634,0.00010566,2]
[335337405,1724124638791,-305.17321836,0.00010566,2]
[335337406,1724124638800,-301.42,0.00010578,2]
[335337407,1724124638810,-273.55,0.00010578,2]
[335337408,1724124639003,-421.4,0.0001063,2]
[335337409,1724124639014,-500.0,0.00010697,2]
[335337410,1724124639026,-155.65408046,0.00010699,2]
[335337411,1724124639035,-242.83621044,0.00010703,2]
[335337412,1724124639046,-4181.61188858,0.00010703,2]
[335337413,1724124639055,-1500.0,0.00010713,2]
[335337414,1724124639064,-1195.02653304,0.00010713,2]
[335337415,1724124639074,-893.97180773,0.00010713,2]
[335337416,1724124639083,-500.0,0.00010726,2]
[335337417,1724124639092,-500.0,0.00010749,2]
[335337418,1724124639101,-500.0,0.00010774,2]
[335337419,1724124639111,-500.0,0.00010789,2]
[335337420,1724124639122,-155.49729391,0.00010799,2]
[335337421,1724124639132,-1015.75781763,0.00010799,2]
[335337422,1724124639141,-527.15084284,0.00010799,2]
[335337423,1724124639150,-2500.0,0.00010801,2]
[335337424,1724124639159,-2500.0,0.00010816,2]
[335337425,1724124639168,-487.53808258,0.00010861,2]
[335337426,1724124639177,-160.09,0.00010861,2]
[335337427,1724124639186,-12501.421,0.00010861,2]
[335337428,1724124639195,-810.56,0.00010887,2]
[335337429,1724124639204,-173.22913775,0.00010888,2]
[335337430,1724124639213,-156.08759274,0.00010888,2]
[335337431,1724124639223,-166.66694184,0.00010888,2]
[335337432,1724124639232,-155.4703365,0.00010888,2]
[335337433,1724124639241,-956.29284687,0.00010888,2]
[335337434,1724124639250,-378.70661734,0.00010888,2]
[335337435,1724124639259,-26550.3185,0.00010888,2]
[335337436,1724124639269,-1521.5208854,0.00010888,2]
[335337437,1724124639281,-3224.7168146,0.00010888,2]
[335337438,1724124639290,-718.3116,0.00010888,2]
[335337439,1724124639299,-289.5385,0.00010888,2]
[335337440,1724124639308,-1248.53659,0.0001089,2]
[335337441,1724124639317,-270.60181535,0.0001089,2]
[335337442,1724124639327,-211.05406018,0.0001089,2]
[335337443,1724124639336,-164.10014798,0.0001089,2]
[335337444,1724124639345,-247.9946,0.00010899,2]
[335337445,1724124639354,-341.34077296,0.00010899,2]
[335337446,1724124639363,-420.64850572,0.00010899,2]
[335337447,1724124639372,-420.64850572,0.00010899,2]
[335337448,1724124639381,-420.64850572,0.00010899,2]
[335337449,1724124639391,-420.64850572,0.00010899,2]
[335337450,1724124639400,-420.64850572,0.00010899,2]
[335337451,1724124639409,-1141.6472,0.000109,2]
[335337452,1724124639418,-1000.0,0.000109,2]
[335337453,1724124639427,-7500.0,0.000109,2]
[335337454,1724124639439,-170.87057125,0.000109,2]
[335337455,1724124639451,-500.0,0.00010911,2]
[335337456,1724124639463,-500.0,0.00010911,2]
[335337457,1724124639473,-670.48038603,0.0001093,2]
[335337458,1724124639482,-500.0,0.00010938,2]
[335337459,1724124639492,-151.94,0.00010959,2]
[335337460,1724124639502,-250.0,0.00010959,2]
[335337461,1724124639512,-556.0,0.00010961,2]
[335337462,1724124639521,-150.0,0.00010961,2]
[335337463,1724124639530,-721.0,0.00010961,2]
[335337464,1724124639540,-810.0,0.00010961,2]
[335337465,1724124639550,-447.0,0.00010961,2]
[335337466,1724124639559,-1896.0,0.00010961,2]
[335337467,1724124639568,-150.0,0.00010961,2]
[335337468,1724124639577,-551.0,0.00010961,2]
[335337469,1724124639586,-3319.0,0.00010961,2]
[335337470,1724124639595,-247.0,0.00010961,2]
[335337471,1724124639607,-1165.0,0.00010961,2]
[335337472,1724124639616,-764.0,0.00010961,2]
[335337473,1724124639626,-1077.0,0.00010961,2]
[335337474,1724124639635,-5846.0,0.00010961,2]
[335337475,1724124639644,-3727.0,0.00010961,2]
[335337476,1724124639653,-1258.0,0.00010961,2]
[335337477,1724124639662,-625.371,0.00010961,2]
[335337478,1724124639672,-1923.0,0.00010961,2]
[335337479,1724124639680,-289.0,0.00010961,2]
[335337480,1724124639690,-1543.0,0.00010961,2]
[335337481,1724124639698,-264.20661714,0.00010965,2]
[335337482,1724124639708,-500.0,0.00010965,2]
[335337483,1724124639717,-236.8,0.00010972,2]
[335337484,1724124639727,-200.0,0.00010973,2]
[335337485,1724124639736,-155.0,0.00010979,2]
[335337486,1724124639745,-183.75984863,0.00010997,2]
[335337487,1724124639754,-324.31467682,0.00010998,2]
[335337488,1724124639763,-235.27502008,0.00010999,2]
[335337489,1724124639773,-500.0,0.00010999,2]
[335337490,1724124639783,-500.0,0.00010999,2]
[335337491,1724124639792,-500.0,0.00010999,2]
[335337492,1724124639801,-500.0,0.00010999,2]
[335337493,1724124639810,-500.0,0.00010999,2]
[335337494,1724124639819,-500.0,0.00010999,2]
[335337495,1724124639828,-500.0,0.00010999,2]
[335337496,1724124639837,-500.0,0.00010999,2]
[335337497,1724124639846,-500.0,0.00010999,2]
[335337498,1724124639855,-500.0,0.00010999,2]
[335337499,1724124639864,-451.12641513,0.00010999,2]
[335337500,1724124639873,-155.0,0.00010999,2]
[335337501,1724124639882,-500.0,0.00010999,2]